[Event "1000GM Schev-G4 March 2024"]
[Site "Santa Clara"]
[Date "2024.03.09"]
[Round "1.1"]
[White "Yao, Hanchi"]
[Black "Kretchetov, Alexandre"]
[Result "1/2-1/2"]
[ECO "D52"]
[WhiteElo "1997"]
[BlackElo "2141"]
[Annotator "RC"]
[PlyCount "88"]
[EventDate "2024.03.06"]
[EventType "schev"]
[EventCountry "USA"]
[SourceTitle "playchess.com"]
[Source "ChessBase"]
[SourceQuality "1"]
[TimeControl "5400+30"]

1. d4 {[%emt 0:01:02]} Nf6 {[%emt 0:00:36]} 2. c4 {[%emt 0:00:06]} e6 {[%emt 0:00:13]} 3. Nc3 {[%emt 0:00:09]} d5 {[%emt 0:00:23]} 4. Bg5 {[%emt 0:00:19]} Nbd7 {[%emt 0:00:21]} 5. e3 {[%emt 0:00:40]} c6 {[%emt 0:00:23]} 6. Nf3 {[%emt 0:01:23]} Qa5 {[%emt 0:00:13]} 7. Bxf6 {[%emt 0:05:57]} Nxf6 {[%emt 0:00:11]} 8. Nd2 {[%emt 0:00:45]} Be7 {[%emt 0:04:36]} 9. Bd3 {[%emt 0:01:58]} O-O {[%emt 0:00:09]} 10. O-O {[%emt 0:00:44]} Qd8 {[%emt 0:03:05]} 11. a3 {[%emt 0:09:04]} b6 {[%emt 0:03:57]} 12. b4 {[%emt 0:05:01]} a5 {[%emt 0:03:01]} 13. c5 {[%emt 0:08:47]} Ba6 {[%emt 0:02:10]} 14. Nb3 {[%emt 0:06:28]} Qb8 {[%emt 0:06:20]} 15. Bxa6 {[%emt 0:12:29]} Rxa6 {[%emt 0:00:11]} 16. Qe2 {[%emt 0:00:02]} Qb7 {[%emt 0:12:52]} 17. b5 {[%emt 0:05:50]} Raa8 {[%emt 0:02:10]} 18. a4 {[%emt 0:01:15]} Nd7 {[%emt 0:07:05]} 19. Rfc1 {[%emt 0:04:25]} Rfc8 {[%emt 0:01:45]} 20. e4 {[%emt 0:04:15]} bxc5 {[%emt 0:02:41]} 21. bxc6 {[%emt 0:00:49]} Qxc6 {[%emt 0:09:54]} 22. exd5 {[%emt 0:00:20]} Qd6 {[%emt 0:00:38]} 23. dxe6 {[%emt 0:05:17]} Qxe6 {[%emt 0:00:19]} 24. Qxe6 {[%emt 0:01:11]} fxe6 {[%emt 0:00:09]} 25. dxc5 {[%emt 0:05:55]} Nxc5 {[%emt 0:00:25]} 26. Nxc5 {[%emt 0:00:06]} Bxc5 {[%emt 0:00:30]} 27. Nb5 {[%emt 0:01:50]} Kf7 {[%emt 0:01:00]} 28. Kf1 {[%emt 0:00:52]} Bb4 {[%emt 0:01:02]} 29. Ke2 {[%emt 0:01:19]} Kf6 {[%emt 0:00:15]} 30. f4 {[%emt 0:02:43]} Kf5 {[%emt 0:07:52]} 31. Kf3 {[%emt 0:00:25]} h5 {[%emt 0:02:35]} 32. Rab1 {[%emt 0:02:36]} Rd8 {[%emt 0:01:15]} 33. Rb3 {[%emt 0:01:04]} Rd7 {[%emt 0:28:44]} 34. Re3 {[%emt 0:00:58]} Rad8 {[%emt 0:00:00]} 35. Rc6 {[%emt 0:00:33]} Rd3 {[%emt 0:00:00]} 36. Rcxe6 {[%emt 0:01:17]} Rxe3+ {[%emt 0:00:00]} 37. Rxe3 {[%emt 0:00:17]} Rd2 {[%emt 0:00:00]} 38. Re5+ {[%emt 0:00:52]} Kg6 {[%emt 0:00:00]} 39. Re6+ {[%emt 0:00:09]} Kf5 {[%emt 0:00:00]} 40. Re5+ {[%emt 0:00:03]} Kg6 {[%emt 0:00:00]} 41. Re6+ {[%emt 0:01:39]} Kf7 {[%emt 0:04:00]} 42. Re2 {[%emt 0:10:36]} Rd1 43. Re5 {[%emt 0:00:30]} Kf6 {[%emt 0:01:00]} 44. Re6+ {[%emt 0:00:30]} Kf5 1/2-1/2

[Event "1000GM Schev-G4 March 2024"]
[Site "Santa Clara"]
[Date "2024.03.09"]
[Round "1.2"]
[White "Karthi, Jashith"]
[Black "Ramirez, Carlos"]
[Result "1-0"]
[ECO "E63"]
[WhiteElo "2039"]
[BlackElo "2162"]
[Annotator "RC"]
[PlyCount "73"]
[EventDate "2024.03.06"]
[EventType "schev"]
[EventCountry "USA"]
[SourceTitle "playchess.com"]
[Source "ChessBase"]
[SourceQuality "1"]
[TimeControl "5400+30"]

1. d4 {[%emt 0:00:30]} Nf6 {[%emt 1:31:00]} 2. c4 {[%emt 0:03:50]} g6 {[%emt 0:00:00]} 3. Nc3 {[%emt 0:00:13]} Bg7 {[%emt 0:00:00]} 4. g3 {[%emt 0:00:10]} O-O {[%emt 0:00:00]} 5. Bg2 {[%emt 0:00:11]} d6 {[%emt 0:00:00]} 6. Nf3 {[%emt 0:00:10]} Nc6 {[%emt 0:00:00]} 7. O-O {[%emt 0:00:09]} a6 {[%emt 0:00:00]} 8. Bf4 {[%emt 0:00:19]} Nh5 {[%emt 0:00:00]} 9. Be3 {[%emt 0:01:07]} Rb8 {[%emt 0:00:00]} 10. Rc1 {[%emt 0:00:37]} Bd7 {[%emt 0:00:00]} 11. c5 {[%emt 0:08:52]} dxc5 {[%emt 0:00:00]} 12. d5 {[%emt 0:00:12]} Nd4 {[%emt 0:00:00]} 13. Nxd4 {[%emt 0:00:21]} cxd4 {[%emt 0:00:00]} 14. Bxd4 {[%emt 0:00:09]} Nf6 {[%emt 0:00:00]} 15. e4 {[%emt 0:01:10]} c6 {[%emt 0:00:00]} 16. f4 {[%emt 0:21:56]} cxd5 {[%emt 0:00:00]} 17. e5 {[%emt 0:00:21]} Ne8 {[%emt 0:00:00]} 18. Nxd5 {[%emt 0:00:12]} Bc6 {[%emt 0:00:00]} 19. Ba7 {[%emt 0:04:33]} Ra8 {[%emt 0:00:00]} 20. Bc5 {[%emt 0:00:29]} Bxd5 {[%emt 0:00:00]} 21. Qxd5 {[%emt 0:00:14]} Nc7 {[%emt 0:00:00]} 22. Qxd8 {[%emt 0:00:30]} Rfxd8 {[%emt 0:00:00]} 23. Bb6 {[%emt 0:00:17]} Ne6 {[%emt 0:00:00]} 24. Bxb7 {[%emt 0:00:32]} Rab8 {[%emt 0:00:00]} 25. Bxd8 {[%emt 0:00:07]} Rxb7 {[%emt 0:00:00]} 26. Rc8 {[%emt 0:00:58]} Bf8 {[%emt 0:00:00]} 27. b3 {[%emt 0:02:51]} Kg7 {[%emt 0:00:00]} 28. Rd1 {[%emt 0:00:43]} h5 {[%emt 0:00:00]} 29. Rc6 {[%emt 0:00:42]} Ra7 {[%emt 0:02:07]} 30. Bb6 {[%emt 0:00:20]} Ra8 {[%emt 0:00:18]} 31. Rd7 {[%emt 0:00:13]} h4 {[%emt 0:01:07]} 32. Ra7 {[%emt 0:00:20]} Rb8 {[%emt 0:00:14]} 33. Rxa6 {[%emt 0:00:26]} Kh7 {[%emt 0:00:51]} 34. a4 {[%emt 0:01:18]} Ng7 {[%emt 0:02:12]} 35. a5 {[%emt 0:00:45]} h3 {[%emt 0:00:47]} 36. Ra7 {[%emt 0:00:50]} Kh6 {[%emt 0:00:51]} 37. a6 {[%emt 0:00:07]} 1-0

[Event "1000GM Schev-G4 March 2024"]
[Site "Santa Clara"]
[Date "2024.03.09"]
[Round "1.3"]
[White "Stevens, Adam B"]
[Black "Jaquez, Juan Manuel"]
[Result "1/2-1/2"]
[ECO "E18"]
[WhiteElo "1969"]
[BlackElo "2170"]
[Annotator "RC"]
[PlyCount "81"]
[EventDate "2024.03.06"]
[EventType "schev"]
[EventCountry "USA"]
[SourceTitle "playchess.com"]
[Source "ChessBase"]
[SourceQuality "1"]
[TimeControl "5400+30"]

1. d4 {[%emt 0:00:01]} Nf6 {[%emt 0:00:14]} 2. c4 {[%emt 0:00:05]} e6 {[%emt 0:00:09]} 3. Nf3 {[%emt 0:00:04]} b6 {[%emt 0:00:19]} 4. g3 {[%emt 0:00:07]} Bb7 {[%emt 0:00:09]} 5. Bg2 {[%emt 0:00:08]} Be7 {[%emt 0:00:33]} 6. O-O {[%emt 0:00:10]} O-O {[%emt 0:01:00]} 7. Nc3 {[%emt 0:00:06]} Ne4 {[%emt 0:00:14]} 8. Bd2 {[%emt 0:00:02]} d6 {[%emt 0:01:50]} 9. Qc2 {[%emt 0:07:28]} Nxc3 {[%emt 0:03:49]} 10. Bxc3 {[%emt 0:01:10]} f5 {[%emt 0:01:05]} 11. Nd2 {[%emt 0:02:43]} Bxg2 {[%emt 0:00:12]} 12. Kxg2 {[%emt 0:00:04]} Nd7 {[%emt 0:03:09]} 13. f4 {[%emt 0:06:48]} c5 {[%emt 0:13:37]} 14. dxc5 {[%emt 0:02:30]} dxc5 {[%emt 0:09:21]} 15. e4 {[%emt 0:02:01]} Qc7 {[%emt 0:08:35]} 16. Rae1 {[%emt 1:15:03]} Rae8 {[%emt 0:08:17]} 17. Rf2 {[%emt 0:00:00]} Bf6 {[%emt 0:06:29]} 18. Bxf6 {[%emt 0:00:00]} Nxf6 {[%emt 0:00:14]} 19. exf5 {[%emt 0:00:00]} exf5 {[%emt 0:00:11]} 20. Rxe8 {[%emt 0:00:00]} Rxe8 {[%emt 0:00:02]} 21. Qxf5 {[%emt 0:00:00]} Qc6+ {[%emt 0:03:20]} 22. Kh3 {[%emt 0:00:00]} Re3 {[%emt 0:08:11]} 23. Nf1 {[%emt 0:00:00]} g6 {[%emt 0:16:54]} 24. Qg5 {[%emt 0:00:00]} Re8 {[%emt 0:03:02]} 25. Nd2 {[%emt 0:00:00]} Kg7 {[%emt 0:03:57]} 26. Qh4 {[%emt 0:00:00]} Qd7+ {[%emt 0:04:19]} 27. f5 {[%emt 0:00:00]} Re5 {[%emt 0:00:34]} 28. Qg5 {[%emt 0:00:00]} Rxf5 {[%emt 0:01:48]} 29. Rxf5 {[%emt 0:00:00]} Qxf5+ {[%emt 0:00:10]} 30. Qxf5 {[%emt 0:00:00]} gxf5 {[%emt 0:00:00]} 31. Kg2 {[%emt 0:00:00]} Ng4 {[%emt 0:00:34]} 32. h3 {[%emt 0:00:00]} Ne3+ {[%emt 0:00:09]} 33. Kf3 {[%emt 0:00:00]} Nd1 {[%emt 0:00:06]} 34. b3 {[%emt 0:00:00]} Kf6 {[%emt 0:00:42]} 35. Kf4 {[%emt 0:00:00]} Nc3 {[%emt 0:00:32]} 36. a3 {[%emt 0:00:00]} a5 {[%emt 0:01:25]} 37. Ke3 {[%emt 0:00:00]} Nd1+ {[%emt 0:00:50]} 38. Ke2 {[%emt 0:00:00]} Nc3+ {[%emt 0:00:09]} 39. Ke3 {[%emt 0:00:00]} Nd1+ {[%emt 0:01:37]} 40. Ke2 {[%emt 0:00:00]} Nc3+ {[%emt 0:00:45]} 41. Ke3 {[%emt 0:12:30]} 1/2-1/2

[Event "1000GM Schev-G4 March 2024"]
[Site "Santa Clara"]
[Date "2024.03.09"]
[Round "1.4"]
[White "Montes Orozco, Miguel Angel"]
[Black "Talwalkar, Vedant"]
[Result "1-0"]
[ECO "A80"]
[WhiteElo "2152"]
[BlackElo "1996"]
[Annotator "RC"]
[PlyCount "55"]
[EventDate "2024.03.06"]
[EventType "schev"]
[EventCountry "USA"]
[SourceTitle "playchess.com"]
[Source "ChessBase"]
[SourceQuality "1"]
[TimeControl "5400+30"]

1. d4 {[%emt 0:00:03]} f5 {[%emt 0:00:55]} 2. Bg5 {[%emt 0:00:22]} h6 {[%emt 0:01:16]} 3. Bh4 {[%emt 0:00:10]} g5 {[%emt 0:00:56]} 4. Bg3 {[%emt 0:00:04]} Nf6 {[%emt 0:03:17]} 5. e3 {[%emt 0:00:31]} Bg7 {[%emt 0:00:45]} 6. Nc3 {[%emt 0:01:03]} d6 {[%emt 0:06:32]} 7. Bc4 {[%emt 0:06:24]} e6 {[%emt 0:00:54]} 8. h4 {[%emt 0:01:46]} g4 {[%emt 0:03:58]} 9. h5 {[%emt 0:01:33]} a6 {[%emt 0:08:23]} 10. a4 {[%emt 0:02:35]} O-O {[%emt 0:06:37]} 11. Nge2 {[%emt 0:01:12]} Re8 {[%emt 0:03:29]} 12. f3 {[%emt 0:04:46]} d5 {[%emt 0:07:54]} 13. Ba2 {[%emt 0:07:52]} Bd7 {[%emt 0:04:02]} 14. Nf4 {[%emt 0:02:48]} b5 {[%emt 0:01:16]} 15. Nd3 {[%emt 0:00:43]} bxa4 {[%emt 0:01:57]} 16. Bh4 {[%emt 0:03:18]} Nc6 {[%emt 0:07:09]} 17. fxg4 {[%emt 0:01:10]} fxg4 {[%emt 0:03:21]} 18. Ne5 {[%emt 0:01:56]} Qc8 {[%emt 0:01:05]} 19. Bxf6 {[%emt 0:03:44]} Bxf6 {[%emt 0:00:04]} 20. Qxg4+ {[%emt 0:00:05]} Bg7 {[%emt 0:00:36]} 21. Nxd7 {[%emt 0:03:02]} Qxd7 {[%emt 0:00:05]} 22. Nxd5 {[%emt 0:00:03]} Kh8 {[%emt 0:02:59]} 23. O-O {[%emt 0:02:25]} Qd8 {[%emt 0:04:19]} 24. Rf7 {[%emt 0:00:45]} Rg8 {[%emt 0:00:20]} 25. Nf4 {[%emt 0:01:45]} Bxd4 {[%emt 0:03:00]} 26. Ng6+ {[%emt 0:01:07]} Rxg6 {[%emt 0:00:07]} 27. Qxg6 {[%emt 0:00:03]} Bxe3+ {[%emt 0:00:06]} 28. Kf1 {[%emt 0:00:07]} 1-0

[Event "1000GM Schev-G4 March 2024"]
[Site "Santa Clara"]
[Date "2024.03.09"]
[Round "1.5"]
[White "Vittorino, Carlo Giovanni"]
[Black "Jasinski, Alexander"]
[Result "1/2-1/2"]
[ECO "E97"]
[WhiteElo "2226"]
[BlackElo "1981"]
[Annotator "TA"]
[PlyCount "141"]
[EventDate "2024.03.06"]
[EventType "schev"]
[EventCountry "USA"]
[SourceTitle "playchess.com"]
[Source "ChessBase"]
[SourceQuality "1"]
[TimeControl "5400+30"]

{[%evp 19,141,44,40,14,111,115,117,92,132,132,139,146,131,112,108,-43,47,-50,57,0,0,-17,83,72,80,-150,-153,-152,-152,-158,-167,-172,-172,-156,-127,-166,-48,-244,-37,-30,0,-164,-162,-185,-193,-178,-182,-206,-125,-137,-81,-309,-303,-474,-479,-483,-410,-500,-500,-497,-483,-881,-666,-676,-628,-608,-533,-511,-442,-439,-456,-829,-793,-835,-820,-788,-586,-599,-187,-177,-172,-186,0,0,0,-181,-134,-133,-170,-106,-8,-8,-6,-8,0,0,0,0,-8,-8,0,-8,0,-8,-8,-8,-8,-8,0,-8,0,-8,-8,-8,-8,-8,0,0,0,0,0,0,0,-519]} 1. Nf3 {[%emt 0:00:15]} Nf6 {[%emt 0:00:27]} 2. c4 {[%emt 0:00:18]} g6 {[%emt 0:00:11]} 3. Nc3 {[%emt 0:00:06]} Bg7 {[%emt 0:00:26]} 4. e4 {[%emt 0:00:13]} d6 {[%emt 0:00:18]} 5. d4 {[%emt 0:00:13][%cal Bd2d4,Bd4d5][%mdl 32]} O-O {[%emt 0:00:18]} 6. Be2 {[%emt 0:00:23]} e5 {[%emt 0:00:28]} 7. O-O {[%emt 0:00:09]} Nc6 {[%emt 0:00:19]} 8. d5 {[%emt 0:00:05]} Ne7 {[%emt 0:00:09]} 9. Nd2 {[%emt 0:00:04]} Nd7 {[%emt 0:01:09]} 10. b4 {[%emt 0:00:05]} f5 {[%emt 0:00:46]} 11. c5 {[%emt 0:00:28]} f4 {[%emt 0:04:44]} (11... dxc5 $11 12. Ba3 b6) 12. Nc4 $16 {[%emt 0:06:22]} Nf6 {[%emt 0:02:48]} 13. Ba3 {[%emt 0:06:11] Weiß steht besser.} Rf7 {[%emt 0:04:06]} 14. b5 {[%emt 0:00:33]} Ne8 {[%emt 0:01:06] [#]} 15. b6 $1 {[%emt 0:05:30][%mdl 512]} axb6 {[%emt 0:10:41]} 16. cxb6 {[%emt 0:00:19]} c5 {[%emt 0:05:25]} 17. Bg4 $2 {[%emt 0:39:39]} (17. Bc1 $16) 17... Bf8 {[%emt 0:08:44]} (17... Bxg4 $15 18. Qxg4 Nc8) 18. Rb1 {[%emt 0:18:34]} (18. Be2 $14) 18... h5 {[%emt 0:01:42]} (18... Bxg4 $15 19. Qxg4 Nc8) 19. Bxc8 {[%emt 0:00:35]} (19. Bf3 $14) 19... Nxc8 $11 {[%emt 0:00:26]} 20. f3 {[%emt 0:01:20]} Rg7 {[%emt 0:04:11]} (20... Nf6 $11) 21. Bc1 $16 {[%emt 0:02:46]} g5 {[%emt 0:01:33]} 22. g4 $2 {[%emt 0:00:52]} (22. a4 $16) 22... hxg4 $17 {[%emt 0:02:41]} 23. fxg4 {[%emt 0:00:01]} Ra6 {[%emt 0:00:33]} 24. Qb3 {[%emt 0:01:21]} Nf6 {[%emt 0:01:30][%cal Og7h7]} 25. h3 {[%emt 0:00:20]} Rh7 {[%emt 0:00:50]} 26. Kg2 {[%emt 0:02:58]} Qd7 {[%emt 0:01:18][%cal Of6g4] Und jetzt ...Nxg4! wäre schön.} 27. Qd1 {[%emt 0:01:32] [#]} Ne7 {[%emt 0:05:43]} (27... Rh4 $1 $19 {[%cal Rf6g4] Zielt auf ...Nxg4! ab.} 28. Ne3 Rh8 (28... Rxb6 29. Rxb6 Nxb6 30. a4 $17) (28... Nxb6 29. Nf5 $15)) 28. Ne3 $2 {[%emt 0:06:23]} (28. Rh1 $15) 28... Qd8 $2 {[%emt 0:06:03]} (28... Ng6 $19 29. Nc4 Rh6 (29... Nh4+ 30. Kh2 $15)) 29. Nc4 $15 {[%emt 0:04:03]} Nc8 {[%emt 0:00:43]} (29... Nd7 $11) 30. Qb3 $1 $19 {[%emt 0:00:20] Aktives Gegenspiel!} Nd7 {[%emt 0:00:36]} 31. Na4 {[%emt 0:00:17]} Qf6 {[%emt 0:01:23]} 32. Bd2 {[%emt 0:00:57]} Qg6 {[%emt 0:00:40]} 33. Rfe1 {[%emt 0:00:59]} Be7 {[%emt 0:01:28]} 34. Ba5 {[%emt 0:00:23]} Bd8 {[%emt 0:00:33]} (34... Nf6 $142 35. Rbc1 Bd8 (35... Nxe4 36. Qd3 $11)) 35. Qb5 $2 {[%emt 0:00:55]} (35. Qf3 $17) 35... f3+ {[%emt 0:07:59]} 36. Kxf3 {[%emt 0:00:12]} (36. Kg3 {war die einzige Chance.}) 36... Rxh3+ {[%emt 0:00:14]} 37. Kg2 {[%emt 0:00:05]} Qh7 {[%emt 0:00:23]} 38. Rh1 {[%emt 0:00:26] Pariert Rh2+.} Rxh1 {[%emt 0:01:17]} (38... Qxe4+ 39. Kxh3 Rxa5 (39... Qf3+ 40. Kh2 $11) 40. Qxa5 $11 (40. Nxa5 Qf3+ 41. Kh2 Qf2+ 42. Kh3 Qf3+ 43. Kh2 Qf2+ 44. Kh3 Qf3+ $11)) 39. Rxh1 {[%emt 0:00:01]} Qxe4+ {[%emt 0:00:13]} 40. Kh2 {[%emt 0:00:28]} (40. Kf2 $142 Nf6 (40... Qxh1 41. Qxd7 Qh2+ 42. Ke1 $11) (40... Qxg4 41. Ne3 $11) 41. Rh3) 40... Qf4+ {[%emt 0:01:40]} 41. Kg2 {[%emt 0:00:16]} Qxg4+ {[%emt 0:01:05]} 42. Kf2 {[%emt 0:00:05]} Qf4+ {[%emt 0:01:24]} 43. Ke2 {[%emt 0:00:42]} Qe4+ {[%emt 0:00:21]} 44. Ne3 {[%emt 0:00:08]} Nf6 {[%emt 0:01:48]} (44... Qxh1 45. Qxd7 Qh2+ (45... Rxa5 46. Qxd8+ Kf7 47. Qxc8 $11) 46. Kd1 Qg1+ (46... Rxa5 47. Qe8+ Kh7 48. Qf7+ Kh8 49. Qf8+ Kh7 50. Qf7+ Kh8 51. Qe8+ Kh7 52. Qf7+ $11) 47. Ke2 $11) (44... Ndxb6 45. Qe8+ Kg7 46. Rh8 (46. Qh8+ Kf7 $18) (46. Qh8+ Kf7 $18)) (44... Ncxb6 45. Nxb6 Qxh1 (45... Rxa5 46. Qxa5 Qxh1 47. Qa8 $11) 46. Qxd7 Qh2+ (46... Bxb6 47. Qc8+ Kh7 48. Qd7+ Kg8 49. Qc8+ Kh7 50. Qd7+ Kg8 $11) 47. Ke1 Qg3+ (47... Bxb6 48. Qc8+ Kh7 49. Qxb7+ $11) 48. Ke2 Qh2+ (48... Bxb6 49. Qe8+ Kh7 50. Qf7+ Kh8 51. Qh5+ Kg8 52. Qg6+ Kh8 53. Qe8+ Kh7 54. Qh5+ Kg8 55. Qe8+ Kh7 $11) 49. Ke1 Qg3+ (49... Bxb6 50. Qe6+ Kh7 51. Qf7+ Kh8 52. Qf6+ Kh7 53. Qf5+ Kg7 54. Qd7+ Kg6 55. Qe8+ Kh7 56. Qd7+ Kg6 57. Qe8+ Kh7 58. Qf7+ Kh8 59. Qf8+ Kh7 60. Qf7+ $11) 50. Ke2 Qh2+ $11 (50... Bxb6 51. Qc8+ Kh7 52. Qxb7+ $11)) 45. Nc3 {[%emt 0:03:05]} (45. Qxa6 $142 Nxd5 (45... bxa6 46. b7 $11) (45... Qxh1 46. Qxb7 Qh2+ 47. Kd1 $11) 46. Qb5 Qxe3+ (46... Qxh1 47. Qe8+ Kg7 48. Nf5+ Kf6 49. Qxd8+ Kxf5 50. Qxc8+ Kf6 51. Nc3 $11) 47. Kf1 Qf4+ 48. Kg1 Qd4+ 49. Kf1) 45... Qxh1 {[%emt 0:00:23]} 46. Qxa6 {[%emt 0:00:02]} bxa6 {[%emt 0:01:45]} 47. b7 {[%emt 0:00:03]} Bxa5 {[%emt 0:21:30]} 48. bxc8=Q+ {[%emt 0:00:12]} Kf7 $2 {[%emt 0:00:00]} (48... Kg7 49. Qb7+ Kg6 50. Qb1+ Qxb1 51. Nxb1 c4 52. Nxc4 Bc7 (52... Bb4 53. a3 $19)) 49. Qe6+ {[%emt 0:00:44]} Kg6 {[%emt 0:00:00]} 50. Qf5+ {[%emt 0:02:46]} Kf7 $2 {[%emt 0:00:00]} ({Günstiger ist} 50... Kg7 $19 51. Qxg5+ Kf7) 51. Qe6+ $11 {[%emt 0:00:10]} Kg6 $2 {[%emt 0:00:00]} (51... Kg7 $11 52. Nf5+ Kg6 53. Ne7+ Kh5 54. Qf7+ Kg4 55. Qe6+ Kh5 56. Qf7+ Kh4 57. Qxf6 Qg2+ (57... Bxc3 58. Qh8+ Kg3 59. Qxh1 e4 60. Qxe4 Kh2 61. Kf1 Kh3 62. Qf3+ Kh4 63. Ng6#) 58. Kd1 (58. Kd3 c4+ 59. Kxc4 Qg4+ 60. Kd3 Qd4+ 61. Ke2 Qc4+ 62. Kf2 Bb6+ 63. Kg2 Qg4+ 64. Kf1 Qg1+ 65. Ke2 Qe3+ 66. Kf1 Qd3+ 67. Ke1 Qxc3+ 68. Kd1 Qd3+ 69. Ke1 Qg3+ 70. Ke2 Qg2+ 71. Kd1 Qg4+ 72. Kd2 Qf4+ 73. Qxf4+ exf4 $19) 58... Qg1+ (58... Bxc3 $2 59. Nf5+ Kh5 60. Qh6+ Kg4 61. Ne3+ Kf3 62. Nxg2 $18) 59. Kc2 Bxc3 60. Kxc3 Qc1+ 61. Kb3 Qd1+ 62. Ka3 Qc1+ 63. Kb3 Qb1+ 64. Kc3 Qc1+ 65. Kb3) 52. Qf5+ $19 {[%emt 0:00:03]} Kg7 {[%emt 0:00:00]} 53. Qxg5+ {[%emt 0:00:03]} Kf7 {[%emt 0:00:00]} 54. Nf5 {[%emt 0:00:07] Weiss droht Qg7+ und Matt.} Qh5+ {[%emt 0:00:00]} ({Nicht} 54... Bxc3 55. Qg7+ Ke8 56. Qe7#) ({Besser ist} 54... Nxd5 $17 55. Nxd5 Qe1+ 56. Kf3 Qd1+ 57. Kf2 Be1+ (57... Qxd5 $2 {verliert.} 58. Qg7+ Ke6 59. Qg8+ Kxf5 60. Qxd5 $18) 58. Kg2 Qxd5+ 59. Kf1 Qd2 (59... Qh1+ 60. Ke2 $11) 60. Qg7+ Ke6 61. Qg6+ Kd7 62. Qf7+ Kc6 63. Qe8+ Kb6 64. Qd8+ Kb5 65. Qb8+ Ka5 66. Qc7+ Ka4 67. Qc6+ Ka3 (67... Ka5 $2 68. Qc7+ Ka4 69. Qc6+ Ka3 70. Qxa6+ Kb2 71. Qe2 $19) 68. Qxa6+ Kb2 69. Qb5+ Kxa2) 55. Qxh5+ $11 {[%emt 0:00:03] Die Stellung ist ausgeglichen.} Nxh5 {[%emt 0:00:00]} 56. Nxd6+ {[%emt 0:00:04][%mdl 4096] Endspiel. KBN-KNN} Ke7 {[%emt 0:00:00]} 57. Nce4 {[%emt 0:02:51]} Nf4+ {[%emt 0:00:00]} 58. Kf3 {[%emt 0:00:19]} Nxd5 {[%emt 0:00:00]} 59. Nc4 {[%emt 0:00:05]} Bb4 {[%emt 0:00:00]} 60. Nxe5 {[%emt 0:00:12]} Nc3 {[%emt 0:00:00]} 61. Nxc3 {[%emt 0:00:08]} Bxc3 {[%emt 0:00:00] KB-KN} 62. Ke4 {[%emt 0:01:10]} Kd6 {[%emt 0:00:00]} 63. Nc4+ {[%emt 0:00:12]} Kc6 {[%emt 0:00:00]} 64. a4 {[%emt 0:00:19]} Be1 {[%emt 0:00:00]} 65. Ke5 {[%emt 0:00:52]} Bb4 {[%emt 0:00:00]} 66. Ke4 {[%emt 0:00:18]} Bc3 {[%emt 0:00:00]} 67. Kd3 {[%emt 0:00:13]} Bg7 {[%emt 0:00:00]} 68. Ke4 {[%emt 0:00:14]} Bf6 {[%emt 0:00:00]} 69. Na5+ {[%emt 0:00:18]} Kb6 {[%emt 0:00:00]} 70. Nc4+ {[%emt 0:00:04]} Kc6 {[%emt 0:11:30]} 71. Kf3 $2 {[%emt 0:03:31][%mdl 40960] Gewichteter Fehlerwert: Weiß=0.67/Schwarz=0.62.  Verlustzug:     	Weiß=3     	---        Gewinn verpasst:   	---       	Schwarz=2     Fehler:       	Weiß=7     	Schwarz=9     Ungenau:       	---       	Schwarz=2     OK:         	Weiß=26    	Schwarz=17    Bester:       	Weiß=8     	Schwarz=5     Stark:        	Weiß=1     	---       . Ein unerwartetes Ergebnis.} (71. Na5+ $11 {und Weiss muss sich keine Sorgen machen.} Kc7 72. Kd5) 1/2-1/2